[Event "Titled Tuesday Blitz February 28 Early 2023"]
[White "Qashashvili, Alexandre"]
[Black "Ricaurte Lopez, Juan Carlos"]
[WhiteFideId "13600842"]
[BlackFideId "3600327"]
[WhiteElo "2405"]
[BlackElo "2209"]
[Result "1-0"]
[Round "04"]
[TimeControl "180+2"]
[Date "2023.02.28"]
[WhiteClock "0:00:20"]
[BlackClock "0:00:12"]

1. e4 {[%clk 0:02:57]}  e5 {[%clk 0:02:32]} 2. Nc3 {[%clk 0:02:58]}  Nf6 {[%clk 0:02:30]} 3. Nf3 {[%clk 0:02:55]}  Nc6 {[%clk 0:02:28]} 4. d4 {[%clk 0:02:54]}  exd4 {[%clk 0:02:26]} 5. Nxd4 {[%clk 0:02:53]}  Bb4 {[%clk 0:02:20]} 6. Nxc6 {[%clk 0:02:52]}  bxc6 {[%clk 0:02:20]} 7. Bd3 {[%clk 0:02:51]}  d5 {[%clk 0:02:17]} 8. exd5 {[%clk 0:02:51]}  cxd5 {[%clk 0:02:16]} 9. O-O {[%clk 0:02:50]}  O-O {[%clk 0:02:14]} 10. Bg5 {[%clk 0:02:48]}  c6 {[%clk 0:02:11]} 11. Qf3 {[%clk 0:02:44]}  h6 {[%clk 0:02:07]} 12. Bxf6 {[%clk 0:02:43]}  Qxf6 {[%clk 0:02:06]} 13. Qxf6 {[%clk 0:02:43]}  gxf6 {[%clk 0:02:07]} 14. Ne2 {[%clk 0:02:43]}  Re8 {[%clk 0:01:26]} 15. Ng3 {[%clk 0:02:37]}  Re5 {[%clk 0:01:26]} 16. f4 {[%clk 0:02:35]}  Re3 {[%clk 0:01:15]} 17. Bf5 {[%clk 0:02:23]}  Bxf5 {[%clk 0:01:08]} 18. Nxf5 {[%clk 0:02:24]}  Re2 {[%clk 0:01:08]} 19. Nxh6+ {[%clk 0:02:13]}  Kf8 {[%clk 0:01:07]} 20. Nf5 {[%clk 0:01:32]}  Rxc2 {[%clk 0:01:03]} 21. Rac1 {[%clk 0:01:31]}  Rxb2 {[%clk 0:00:51]} 22. Rxc6 {[%clk 0:01:31]}  Re8 {[%clk 0:00:50]} 23. Rxf6 {[%clk 0:01:28]}  Ree2 {[%clk 0:00:47]} 24. Rh6 {[%clk 0:01:14]}  Rxg2+ {[%clk 0:00:46]} 25. Kh1 {[%clk 0:01:14]}  Ke8 {[%clk 0:00:38]} 26. Ne3 {[%clk 0:00:53]}  Rgd2 {[%clk 0:00:33]} 27. Rh5 {[%clk 0:00:38]}  Bd6 {[%clk 0:00:20]} 28. Nxd5 {[%clk 0:00:32]}  Rxa2 {[%clk 0:00:17]} 29. Nf6+ {[%clk 0:00:30]}  Ke7 {[%clk 0:00:15]} 30. Ne4 {[%clk 0:00:30]}  Re2 {[%clk 0:00:14]} 31. Nc3 {[%clk 0:00:27]}  Rf2 {[%clk 0:00:12]} 32. Re1+ {[%clk 0:00:22]}  Kd7 {[%clk 0:00:11]} 33. Nxa2 {[%clk 0:00:22]}  Rxa2 {[%clk 0:00:12]} 34. Rf5 {[%clk 0:00:20]} 1-0


[Site "https://www.chess.com"]

[Event "Titled Tuesday Blitz February 28 Early 2023"]
[White "Kornyukov, Alexey"]
[Black "Kalaiyalahan, Akshaya"]
[WhiteFideId "4150457"]
[BlackFideId "422894"]
[WhiteElo "2352"]
[BlackElo "2043"]
[Result "0-1"]
[Round "04"]
[TimeControl "180+2"]
[Date "2023.02.28"]
[WhiteClock "0:00:25"]
[BlackClock "0:00:12"]

1. e4 {[%clk 0:03:00]}  d5 {[%clk 0:02:52]} 2. exd5 {[%clk 0:03:00]}  Qxd5 {[%clk 0:02:51]} 3. Nc3 {[%clk 0:03:00]}  Qa5 {[%clk 0:02:49]} 4. d4 {[%clk 0:02:58]}  Nf6 {[%clk 0:02:46]} 5. Nf3 {[%clk 0:02:57]}  e6 {[%clk 0:02:45]} 6. Bd3 {[%clk 0:02:49]}  c6 {[%clk 0:02:42]} 7. O-O {[%clk 0:02:43]}  Nbd7 {[%clk 0:02:41]} 8. Bd2 {[%clk 0:02:41]}  Qc7 {[%clk 0:02:39]} 9. Ne4 {[%clk 0:02:38]}  Nxe4 {[%clk 0:02:38]} 10. Bxe4 {[%clk 0:02:34]}  Nf6 {[%clk 0:02:38]} 11. Bd3 {[%clk 0:02:29]}  Bd6 {[%clk 0:02:38]} 12. c4 {[%clk 0:02:21]}  O-O {[%clk 0:02:37]} 13. c5 {[%clk 0:01:57]}  Bf4 {[%clk 0:02:11]} 14. Bxf4 {[%clk 0:01:52]}  Qxf4 {[%clk 0:02:10]} 15. Qd2 {[%clk 0:01:51]}  Qxd2 {[%clk 0:02:00]} 16. Nxd2 {[%clk 0:01:48]}  e5 {[%clk 0:01:48]} 17. dxe5 {[%clk 0:01:46]}  Nd7 {[%clk 0:01:42]} 18. Nf3 {[%clk 0:01:36]}  Nxc5 {[%clk 0:01:34]} 19. Bc2 {[%clk 0:01:34]}  h6 {[%clk 0:01:03]} 20. b4 {[%clk 0:01:33]}  Na6 {[%clk 0:00:59]} 21. Rab1 {[%clk 0:01:31]}  Bg4 {[%clk 0:00:58]} 22. Bd3 {[%clk 0:01:21]}  Nc7 {[%clk 0:00:54]} 23. Be4 {[%clk 0:01:17]}  Rad8 {[%clk 0:00:50]} 24. h3 {[%clk 0:01:15]}  Be6 {[%clk 0:00:41]} 25. a3 {[%clk 0:01:00]}  Nd5 {[%clk 0:00:35]} 26. Bxd5 {[%clk 0:00:57]}  Bxd5 {[%clk 0:00:34]} 27. Rfd1 {[%clk 0:00:56]}  Bxf3 {[%clk 0:00:33]} 28. gxf3 {[%clk 0:00:56]}  Rfe8 {[%clk 0:00:29]} 29. f4 {[%clk 0:00:55]}  g5 {[%clk 0:00:26]} 30. fxg5 {[%clk 0:00:49]}  hxg5 {[%clk 0:00:27]} 31. Rxd8 {[%clk 0:00:47]}  Rxd8 {[%clk 0:00:27]} 32. Re1 {[%clk 0:00:42]}  Rd3 {[%clk 0:00:27]} 33. Re3 {[%clk 0:00:42]}  Rxe3 {[%clk 0:00:24]} 34. fxe3 {[%clk 0:00:42]}  Kf8 {[%clk 0:00:23]} 35. Kg2 {[%clk 0:00:42]}  Ke7 {[%clk 0:00:23]} 36. Kf3 {[%clk 0:00:41]}  Ke6 {[%clk 0:00:23]} 37. Kg4 {[%clk 0:00:41]}  f6 {[%clk 0:00:18]} 38. exf6 {[%clk 0:00:40]}  Kxf6 {[%clk 0:00:18]} 39. e4 {[%clk 0:00:40]}  b6 {[%clk 0:00:17]} 40. e5+ {[%clk 0:00:39]}  Kxe5 {[%clk 0:00:17]} 41. Kxg5 {[%clk 0:00:40]}  c5 {[%clk 0:00:18]} 42. bxc5 {[%clk 0:00:34]}  bxc5 {[%clk 0:00:17]} 43. h4 {[%clk 0:00:34]}  c4 {[%clk 0:00:18]} 44. h5 {[%clk 0:00:35]}  c3 {[%clk 0:00:18]} 45. h6 {[%clk 0:00:35]}  c2 {[%clk 0:00:19]} 46. h7 {[%clk 0:00:31]}  c1=Q+ {[%clk 0:00:19]} 47. Kg6 {[%clk 0:00:32]}  Qc8 {[%clk 0:00:14]} 48. Kg7 {[%clk 0:00:31]}  Qg4+ {[%clk 0:00:13]} 49. Kh8 {[%clk 0:00:28]}  Kf6 {[%clk 0:00:11]} 50. a4 {[%clk 0:00:25]}  Qg7# {[%clk 0:00:12]} 0-1


[Site "https://www.chess.com"]

[Event "Titled Tuesday Blitz February 28 Early 2023"]
[White "Nakamura, Hikaru"]
[Black "Svane, Rasmus"]
[WhiteFideId "2016192"]
[BlackFideId "4657101"]
[WhiteElo "2879"]
[BlackElo "2597"]
[Result "1-0"]
[Round "05"]
[TimeControl "180+2"]
[Date "2023.02.28"]
[WhiteClock "0:00:08"]
[BlackClock "0:00:01"]

1. e4 {[%clk 0:02:59]}  c6 {[%clk 0:02:57]} 2. d3 {[%clk 0:02:49]}  d5 {[%clk 0:02:58]} 3. Nf3 {[%clk 0:02:50]}  dxe4 {[%clk 0:02:53]} 4. dxe4 {[%clk 0:02:50]}  Qxd1+ {[%clk 0:02:54]} 5. Kxd1 {[%clk 0:02:51]}  Nf6 {[%clk 0:02:54]} 6. Nfd2 {[%clk 0:02:48]}  g5 {[%clk 0:02:54]} 7. f3 {[%clk 0:02:42]}  h5 {[%clk 0:02:54]} 8. Nc4 {[%clk 0:02:29]}  g4 {[%clk 0:02:50]} 9. Bg5 {[%clk 0:02:22]}  Be6 {[%clk 0:02:36]} 10. Ne3 {[%clk 0:02:14]}  Nbd7 {[%clk 0:02:24]} 11. Bc4 {[%clk 0:02:14]}  Bxc4 {[%clk 0:02:05]} 12. Nxc4 {[%clk 0:02:15]}  Bh6 {[%clk 0:01:56]} 13. Bxh6 {[%clk 0:02:09]}  Rxh6 {[%clk 0:01:57]} 14. Nbd2 {[%clk 0:02:02]}  h4 {[%clk 0:01:40]} 15. f4 {[%clk 0:01:51]}  Nc5 {[%clk 0:01:37]} 16. Re1 {[%clk 0:01:37]}  Rd8 {[%clk 0:01:36]} 17. Kc1 {[%clk 0:01:34]}  Rd4 {[%clk 0:01:34]} 18. Ne3 {[%clk 0:01:26]}  Nfxe4 {[%clk 0:01:21]} 19. Nb3 {[%clk 0:01:20]}  Rd8 {[%clk 0:00:58]} 20. Nxg4 {[%clk 0:01:05]}  Rg6 {[%clk 0:00:58]} 21. Ne3 {[%clk 0:00:59]}  Rf6 {[%clk 0:00:55]} 22. f5 {[%clk 0:00:54]}  a6 {[%clk 0:00:50]} 23. Rf1 {[%clk 0:00:26]}  Rfd6 {[%clk 0:00:42]} 24. Nc4 {[%clk 0:00:22]}  Rd5 {[%clk 0:00:39]} 25. Ne3 {[%clk 0:00:20]}  R5d7 {[%clk 0:00:30]} 26. Re1 {[%clk 0:00:12]}  Kf8 {[%clk 0:00:26]} 27. Rf1 {[%clk 0:00:12]}  Rd6 {[%clk 0:00:23]} 28. Rf4 {[%clk 0:00:12]}  Nxb3+ {[%clk 0:00:17]} 29. axb3 {[%clk 0:00:12]}  Nf6 {[%clk 0:00:13]} 30. Rxh4 {[%clk 0:00:13]}  Kg7 {[%clk 0:00:14]} 31. Raa4 {[%clk 0:00:12]}  Rd2 {[%clk 0:00:14]} 32. Rh3 {[%clk 0:00:11]}  Re2 {[%clk 0:00:14]} 33. Kb1 {[%clk 0:00:08]}  Rdd2 {[%clk 0:00:14]} 34. Rg3+ {[%clk 0:00:08]}  Kf8 {[%clk 0:00:13]} 35. Rh4 {[%clk 0:00:09]}  Ke8 {[%clk 0:00:14]} 36. b4 {[%clk 0:00:06]}  b5 {[%clk 0:00:13]} 37. Rf3 {[%clk 0:00:04]}  Kd7 {[%clk 0:00:13]} 38. Rhh3 {[%clk 0:00:03]}  Kc7 {[%clk 0:00:13]} 39. Rf1 {[%clk 0:00:03]}  Kb6 {[%clk 0:00:13]} 40. Kc1 {[%clk 0:00:04]}  a5 {[%clk 0:00:13]} 41. Rd1 {[%clk 0:00:05]}  Ne4 {[%clk 0:00:05]} 42. bxa5+ {[%clk 0:00:05]}  Kxa5 {[%clk 0:00:06]} 43. Rxd2 {[%clk 0:00:06]}  Rxd2 {[%clk 0:00:03]} 44. Rh4 {[%clk 0:00:06]}  Rd4 {[%clk 0:00:02]} 45. c3 {[%clk 0:00:07]}  Nxc3 {[%clk 0:00:02]} 46. Rxd4 {[%clk 0:00:07]}  Ne2+ {[%clk 0:00:03]} 47. Kd2 {[%clk 0:00:07]}  Nxd4 {[%clk 0:00:04]} 48. h4 {[%clk 0:00:08]}  e6 {[%clk 0:00:01]} 49. h5 {[%clk 0:00:08]} 1-0


[Site "https://www.chess.com"]

[Event "Titled Tuesday Blitz February 28 Early 2023"]
[White "Maghsoodloo, Parham"]
[Black "Carlsen, Magnus"]
[WhiteFideId "12539929"]
[BlackFideId "1503014"]
[WhiteElo "2659"]
[BlackElo "2852"]
[Result "0-1"]
[Round "05"]
[TimeControl "180+2"]
[Date "2023.02.28"]
[WhiteClock "0:00:01"]
[BlackClock "0:00:12"]

1. d4 {[%clk 0:03:00]}  Nf6 {[%clk 0:02:54]} 2. c4 {[%clk 0:03:00]}  e6 {[%clk 0:02:54]} 3. Nf3 {[%clk 0:02:59]}  a6 {[%clk 0:02:50]} 4. Nc3 {[%clk 0:02:52]}  d5 {[%clk 0:02:50]} 5. cxd5 {[%clk 0:02:51]}  exd5 {[%clk 0:02:51]} 6. Bg5 {[%clk 0:02:50]}  Be6 {[%clk 0:02:50]} 7. e3 {[%clk 0:02:49]}  Nbd7 {[%clk 0:02:50]} 8. Bd3 {[%clk 0:02:49]}  Bd6 {[%clk 0:02:45]} 9. O-O {[%clk 0:02:47]}  c6 {[%clk 0:02:43]} 10. Bf4 {[%clk 0:02:45]}  Qb8 {[%clk 0:02:42]} 11. Qd2 {[%clk 0:02:45]}  O-O {[%clk 0:02:41]} 12. h3 {[%clk 0:02:44]}  Re8 {[%clk 0:02:41]} 13. Rfe1 {[%clk 0:02:44]}  Nf8 {[%clk 0:02:37]} 14. Bxd6 {[%clk 0:02:42]}  Qxd6 {[%clk 0:02:36]} 15. Ne5 {[%clk 0:02:42]}  N6d7 {[%clk 0:02:36]} 16. f4 {[%clk 0:02:42]}  f6 {[%clk 0:02:34]} 17. Nf3 {[%clk 0:02:41]}  Bf7 {[%clk 0:02:34]} 18. Na4 {[%clk 0:02:37]}  b5 {[%clk 0:02:32]} 19. Nc3 {[%clk 0:02:36]}  c5 {[%clk 0:02:32]} 20. dxc5 {[%clk 0:02:36]}  Nxc5 {[%clk 0:02:33]} 21. Nd4 {[%clk 0:02:35]}  Rad8 {[%clk 0:02:30]} 22. Rad1 {[%clk 0:02:33]}  Qb6 {[%clk 0:02:27]} 23. Bb1 {[%clk 0:02:33]}  b4 {[%clk 0:02:26]} 24. Nce2 {[%clk 0:02:32]}  a5 {[%clk 0:02:26]} 25. Kh2 {[%clk 0:02:22]}  Bg6 {[%clk 0:02:25]} 26. Bxg6 {[%clk 0:02:15]}  hxg6 {[%clk 0:02:25]} 27. Ng3 {[%clk 0:02:14]}  Nfe6 {[%clk 0:02:25]} 28. Qc2 {[%clk 0:02:05]}  Nxd4 {[%clk 0:02:11]} 29. exd4 {[%clk 0:01:49]}  Rxe1 {[%clk 0:02:11]} 30. Rxe1 {[%clk 0:01:47]}  Ne4 {[%clk 0:02:11]} 31. Nxe4 {[%clk 0:01:46]}  dxe4 {[%clk 0:02:11]} 32. Rxe4 {[%clk 0:00:55]}  f5 {[%clk 0:02:11]} 33. Qb3+ {[%clk 0:00:53]}  Kh7 {[%clk 0:02:08]} 34. Re6 {[%clk 0:00:54]}  Qxd4 {[%clk 0:01:56]} 35. Qg3 {[%clk 0:00:54]}  Kg8 {[%clk 0:01:56]} 36. b3 {[%clk 0:00:47]}  Rd6 {[%clk 0:01:54]} 37. Re5 {[%clk 0:00:44]}  Ra6 {[%clk 0:01:42]} 38. Qg5 {[%clk 0:00:41]}  Qd7 {[%clk 0:01:20]} 39. Re7 {[%clk 0:00:40]}  Qd6 {[%clk 0:01:17]} 40. Re5 {[%clk 0:00:30]}  a4 {[%clk 0:01:17]} 41. h4 {[%clk 0:00:22]}  Qf6 {[%clk 0:00:38]} 42. Rb5 {[%clk 0:00:21]}  axb3 {[%clk 0:00:34]} 43. axb3 {[%clk 0:00:20]}  Qxg5 {[%clk 0:00:32]} 44. hxg5 {[%clk 0:00:21]}  Rd6 {[%clk 0:00:32]} 45. Rxb4 {[%clk 0:00:21]}  Rd3 {[%clk 0:00:32]} 46. Rb6 {[%clk 0:00:20]}  Rc3 {[%clk 0:00:29]} 47. b4 {[%clk 0:00:20]}  Rb3 {[%clk 0:00:30]} 48. b5 {[%clk 0:00:20]}  Kf7 {[%clk 0:00:28]} 49. Rb7+ {[%clk 0:00:20]}  Kg8 {[%clk 0:00:28]} 50. b6 {[%clk 0:00:21]}  Kh7 {[%clk 0:00:28]} 51. Rb8 {[%clk 0:00:20]}  Rh3+ {[%clk 0:00:21]} 52. Kg1 {[%clk 0:00:16]}  Rh1+ {[%clk 0:00:21]} 53. Kf2 {[%clk 0:00:16]}  Rf1+ {[%clk 0:00:22]} 54. Ke3 {[%clk 0:00:16]}  Rf3+ {[%clk 0:00:21]} 55. Kd4 {[%clk 0:00:14]}  Rxf4+ {[%clk 0:00:15]} 56. Kc5 {[%clk 0:00:14]}  Rf2 {[%clk 0:00:14]} 57. Rd8 {[%clk 0:00:10]}  Rc2+ {[%clk 0:00:12]} 58. Kd6 {[%clk 0:00:02]}  Rd2+ {[%clk 0:00:12]} 59. Kc7 {[%clk 0:00:02]}  Rc2+ {[%clk 0:00:12]} 60. Kd7 {[%clk 0:00:02]}  Rd2+ {[%clk 0:00:12]} 61. Kc8 {[%clk 0:00:01]}  Rc2+ {[%clk 0:00:12]} 62. Kb8 {[%clk 0:00:01]}  Rxg2 {[%clk 0:00:12]} 0-1


[Site "https://www.chess.com"]

[Event "Titled Tuesday Blitz February 28 Early 2023"]
[White "Bluebaum, Matthias"]
[Black "Mitrabha, Guha"]
[WhiteFideId "24651516"]
[BlackFideId "5057000"]
[WhiteElo "2638"]
[BlackElo "2520"]
[Result "0-1"]
[Round "05"]
[TimeControl "180+2"]
[Date "2023.02.28"]
[WhiteClock "0:00:13"]
[BlackClock "0:00:51"]

1. d4 {[%clk 0:03:00]}  Nf6 {[%clk 0:02:59]} 2. c4 {[%clk 0:03:01]}  e6 {[%clk 0:02:59]} 3. Nc3 {[%clk 0:03:01]}  d5 {[%clk 0:02:53]} 4. cxd5 {[%clk 0:03:02]}  exd5 {[%clk 0:02:53]} 5. Bf4 {[%clk 0:03:03]}  c6 {[%clk 0:02:52]} 6. e3 {[%clk 0:03:03]}  Bd6 {[%clk 0:02:53]} 7. Bxd6 {[%clk 0:03:03]}  Qxd6 {[%clk 0:02:54]} 8. Bd3 {[%clk 0:03:04]}  O-O {[%clk 0:02:54]} 9. Nge2 {[%clk 0:03:05]}  Re8 {[%clk 0:02:52]} 10. Qd2 {[%clk 0:03:05]}  Nbd7 {[%clk 0:02:51]} 11. f3 {[%clk 0:03:06]}  c5 {[%clk 0:02:49]} 12. Rc1 {[%clk 0:02:31]}  a6 {[%clk 0:02:45]} 13. O-O {[%clk 0:02:30]}  Qe7 {[%clk 0:02:43]} 14. Kf2 {[%clk 0:02:21]}  b6 {[%clk 0:02:38]} 15. Ng3 {[%clk 0:02:18]}  g6 {[%clk 0:02:38]} 16. Rfe1 {[%clk 0:02:14]}  Bb7 {[%clk 0:02:37]} 17. Kg1 {[%clk 0:02:14]}  Rac8 {[%clk 0:02:36]} 18. a3 {[%clk 0:02:12]}  Qd6 {[%clk 0:02:30]} 19. Rcd1 {[%clk 0:02:09]}  Re7 {[%clk 0:02:29]} 20. Bc2 {[%clk 0:01:49]}  Rce8 {[%clk 0:02:27]} 21. Qf2 {[%clk 0:01:45]}  Kg7 {[%clk 0:02:13]} 22. Nf1 {[%clk 0:00:56]}  h5 {[%clk 0:02:05]} 23. h4 {[%clk 0:00:52]}  Re6 {[%clk 0:01:53]} 24. Ng3 {[%clk 0:00:44]}  Qe7 {[%clk 0:01:45]} 25. e4 {[%clk 0:00:35]}  cxd4 {[%clk 0:01:41]} 26. Qxd4 {[%clk 0:00:34]}  Qc5 {[%clk 0:01:29]} 27. Qxc5 {[%clk 0:00:31]}  Nxc5 {[%clk 0:01:18]} 28. b3 {[%clk 0:00:31]}  dxe4 {[%clk 0:01:16]} 29. b4 {[%clk 0:00:30]}  exf3 {[%clk 0:01:11]} 30. Rxe6 {[%clk 0:00:20]}  Nxe6 {[%clk 0:01:12]} 31. gxf3 {[%clk 0:00:20]}  Rc8 {[%clk 0:01:11]} 32. Rd3 {[%clk 0:00:16]}  Nf4 {[%clk 0:01:05]} 33. Re3 {[%clk 0:00:17]}  N6d5 {[%clk 0:01:04]} 34. Nxd5 {[%clk 0:00:18]}  Nxd5 {[%clk 0:01:05]} 35. Re2 {[%clk 0:00:18]}  Nf4 {[%clk 0:01:06]} 36. Rd2 {[%clk 0:00:19]}  Bxf3 {[%clk 0:01:05]} 37. Bb3 {[%clk 0:00:19]}  Rc3 {[%clk 0:01:04]} 38. Ba2 {[%clk 0:00:19]}  Nh3+ {[%clk 0:01:03]} 39. Kh2 {[%clk 0:00:12]}  Nf4 {[%clk 0:01:03]} 40. Kg1 {[%clk 0:00:11]}  Rxa3 {[%clk 0:00:59]} 41. Bc4 {[%clk 0:00:09]}  b5 {[%clk 0:00:57]} 42. Bf1 {[%clk 0:00:08]}  Bd5 {[%clk 0:00:52]} 43. Rd4 {[%clk 0:00:08]}  Rxg3+ {[%clk 0:00:51]} 44. Kf2 {[%clk 0:00:08]}  Rf3+ {[%clk 0:00:51]} 45. Ke1 {[%clk 0:00:08]}  Bc4 {[%clk 0:00:50]} 46. Bxc4 {[%clk 0:00:07]}  bxc4 {[%clk 0:00:51]} 47. Rxc4 {[%clk 0:00:08]}  Ne6 {[%clk 0:00:52]} 48. Ke2 {[%clk 0:00:07]}  Rf4 {[%clk 0:00:52]} 49. Kd3 {[%clk 0:00:05]}  Rxc4 {[%clk 0:00:51]} 50. Kxc4 {[%clk 0:00:06]}  g5 {[%clk 0:00:52]} 51. Kd5 {[%clk 0:00:06]}  gxh4 {[%clk 0:00:51]} 52. Ke4 {[%clk 0:00:07]}  Kf6 {[%clk 0:00:51]} 53. Kf3 {[%clk 0:00:08]}  Ke5 {[%clk 0:00:52]} 54. Kg2 {[%clk 0:00:09]}  Kd5 {[%clk 0:00:52]} 55. Kh3 {[%clk 0:00:09]}  Kc4 {[%clk 0:00:52]} 56. Kxh4 {[%clk 0:00:10]}  Kxb4 {[%clk 0:00:53]} 57. Kxh5 {[%clk 0:00:11]}  a5 {[%clk 0:00:53]} 58. Kg4 {[%clk 0:00:09]}  a4 {[%clk 0:00:54]} 59. Kf5 {[%clk 0:00:10]}  a3 {[%clk 0:00:54]} 60. Kf6 {[%clk 0:00:10]}  a2 {[%clk 0:00:55]} 61. Ke7 {[%clk 0:00:10]}  a1=Q {[%clk 0:00:55]} 62. Kxf7 {[%clk 0:00:09]}  Nf4 {[%clk 0:00:54]} 63. Ke7 {[%clk 0:00:09]}  Ne2 {[%clk 0:00:54]} 64. Ke6 {[%clk 0:00:08]}  Qa5 {[%clk 0:00:53]} 65. Kf6 {[%clk 0:00:09]}  Qd5 {[%clk 0:00:53]} 66. Kg6 {[%clk 0:00:09]}  Qe5 {[%clk 0:00:53]} 67. Kh6 {[%clk 0:00:09]}  Qf5 {[%clk 0:00:53]} 68. Kg7 {[%clk 0:00:10]}  Qe6 {[%clk 0:00:50]} 69. Kh7 {[%clk 0:00:10]}  Qg4 {[%clk 0:00:50]} 70. Kh8 {[%clk 0:00:10]}  Kc5 {[%clk 0:00:50]} 71. Kh7 {[%clk 0:00:11]}  Kd6 {[%clk 0:00:51]} 72. Kh8 {[%clk 0:00:11]}  Ke7 {[%clk 0:00:51]} 73. Kh7 {[%clk 0:00:12]}  Kf7 {[%clk 0:00:52]} 74. Kh8 {[%clk 0:00:13]}  Qh4# {[%clk 0:00:51]} 0-1


[Site "https://www.chess.com"]

[Event "Titled Tuesday Blitz February 28 Early 2023"]
[White "Bacrot, Etienne"]
[Black "Adhiban, B."]
[WhiteFideId "605506"]
[BlackFideId "5018471"]
[WhiteElo "2667"]
[BlackElo "2587"]
[Result "1-0"]
[Round "05"]
[TimeControl "180+2"]
[Date "2023.02.28"]
[WhiteClock "0:00:10"]
[BlackClock "0:00:09"]

1. e4 {[%clk 0:03:00]}  c5 {[%clk 0:02:57]} 2. Nf3 {[%clk 0:03:00]}  Nc6 {[%clk 0:02:57]} 3. Bb5 {[%clk 0:03:00]}  d6 {[%clk 0:02:56]} 4. O-O {[%clk 0:02:59]}  Bd7 {[%clk 0:02:57]} 5. Re1 {[%clk 0:02:59]}  a6 {[%clk 0:02:57]} 6. Bf1 {[%clk 0:02:58]}  Bg4 {[%clk 0:02:57]} 7. c3 {[%clk 0:02:55]}  e6 {[%clk 0:02:57]} 8. h3 {[%clk 0:02:56]}  Bxf3 {[%clk 0:02:57]} 9. Qxf3 {[%clk 0:02:55]}  Nf6 {[%clk 0:02:56]} 10. d3 {[%clk 0:02:45]}  Be7 {[%clk 0:02:55]} 11. Be3 {[%clk 0:02:45]}  d5 {[%clk 0:02:54]} 12. Nd2 {[%clk 0:02:36]}  d4 {[%clk 0:02:53]} 13. Bf4 {[%clk 0:02:33]}  e5 {[%clk 0:02:54]} 14. Bh2 {[%clk 0:02:28]}  b5 {[%clk 0:02:53]} 15. a4 {[%clk 0:02:12]}  O-O {[%clk 0:02:52]} 16. Qd1 {[%clk 0:02:10]}  dxc3 {[%clk 0:02:30]} 17. bxc3 {[%clk 0:02:10]}  b4 {[%clk 0:02:30]} 18. Qc2 {[%clk 0:02:04]}  Rc8 {[%clk 0:02:21]} 19. Nc4 {[%clk 0:02:04]}  Nd7 {[%clk 0:02:21]} 20. Be2 {[%clk 0:02:01]}  a5 {[%clk 0:02:06]} 21. Bg4 {[%clk 0:02:00]}  Rc7 {[%clk 0:02:06]} 22. Rad1 {[%clk 0:01:43]}  Bf6 {[%clk 0:01:56]} 23. Nd6 {[%clk 0:01:35]}  Nb6 {[%clk 0:01:52]} 24. Nb5 {[%clk 0:01:35]}  Rb7 {[%clk 0:01:37]} 25. d4 {[%clk 0:01:17]}  cxd4 {[%clk 0:01:24]} 26. cxd4 {[%clk 0:01:17]}  Nxd4 {[%clk 0:01:23]} 27. Nxd4 {[%clk 0:01:12]}  exd4 {[%clk 0:01:24]} 28. Qc6 {[%clk 0:01:06]}  Ra7 {[%clk 0:01:18]} 29. e5 {[%clk 0:00:57]}  Be7 {[%clk 0:01:19]} 30. e6 {[%clk 0:00:51]}  f5 {[%clk 0:01:18]} 31. Be2 {[%clk 0:00:48]}  f4 {[%clk 0:01:13]} 32. Bb5 {[%clk 0:00:45]}  Qc7 {[%clk 0:01:03]} 33. Qe4 {[%clk 0:00:36]}  Qc5 {[%clk 0:00:42]} 34. Rxd4 {[%clk 0:00:24]}  f3 {[%clk 0:00:42]} 35. gxf3 {[%clk 0:00:20]}  Qg5+ {[%clk 0:00:38]} 36. Kh1 {[%clk 0:00:20]}  Bc5 {[%clk 0:00:38]} 37. Rdd1 {[%clk 0:00:19]}  Re7 {[%clk 0:00:35]} 38. Rg1 {[%clk 0:00:18]}  Qh5 {[%clk 0:00:34]} 39. Rg4 {[%clk 0:00:18]}  Qxh3 {[%clk 0:00:33]} 40. Rdg1 {[%clk 0:00:17]}  Qxf3+ {[%clk 0:00:22]} 41. Qxf3 {[%clk 0:00:17]}  Rxf3 {[%clk 0:00:23]} 42. Rg5 {[%clk 0:00:18]}  Bxf2 {[%clk 0:00:20]} 43. Rf1 {[%clk 0:00:15]}  Be3 {[%clk 0:00:19]} 44. Rxf3 {[%clk 0:00:14]}  Bxg5 {[%clk 0:00:20]} 45. Bd6 {[%clk 0:00:15]}  Nd5 {[%clk 0:00:16]} 46. Bxe7 {[%clk 0:00:15]}  Bxe7 {[%clk 0:00:17]} 47. Rf7 {[%clk 0:00:13]}  b3 {[%clk 0:00:17]} 48. Rf2 {[%clk 0:00:10]}  Nc3 {[%clk 0:00:14]} 49. Bc4 {[%clk 0:00:09]}  Nxa4 {[%clk 0:00:14]} 50. Bxb3 {[%clk 0:00:09]}  Nc5 {[%clk 0:00:14]} 51. Bc4 {[%clk 0:00:10]}  Ne4 {[%clk 0:00:09]} 52. Rf7 {[%clk 0:00:10]} 1-0


[Site "https://www.chess.com"]

[Event "Titled Tuesday Blitz February 28 Early 2023"]
[White "Lazavik, Denis"]
[Black "Rustemov, Alexander"]
[WhiteFideId "13515110"]
[BlackFideId "4119002"]
[WhiteElo "2560"]
[BlackElo "2901"]
[Result "1-0"]
[Round "05"]
[TimeControl "180+2"]
[Date "2023.02.28"]
[WhiteClock "0:01:13"]
[BlackClock "0:00:20"]

1. d4 {[%clk 0:02:59]}  d5 {[%clk 0:03:00]} 2. c4 {[%clk 0:02:58]}  c6 {[%clk 0:02:59]} 3. Nf3 {[%clk 0:02:57]}  Nf6 {[%clk 0:03:00]} 4. Qc2 {[%clk 0:02:58]}  e6 {[%clk 0:02:55]} 5. e3 {[%clk 0:02:57]}  a6 {[%clk 0:02:45]} 6. b3 {[%clk 0:02:52]}  dxc4 {[%clk 0:02:24]} 7. Bxc4 {[%clk 0:02:40]}  c5 {[%clk 0:02:17]} 8. O-O {[%clk 0:02:29]}  Nbd7 {[%clk 0:02:06]} 9. Ba3 {[%clk 0:02:14]}  cxd4 {[%clk 0:02:02]} 10. Bxf8 {[%clk 0:02:12]}  Nxf8 {[%clk 0:02:02]} 11. Nxd4 {[%clk 0:02:12]}  Ng6 {[%clk 0:02:00]} 12. Rd1 {[%clk 0:02:11]}  Qe7 {[%clk 0:01:53]} 13. Be2 {[%clk 0:02:07]}  O-O {[%clk 0:01:52]} 14. Nd2 {[%clk 0:02:06]}  Ne5 {[%clk 0:01:38]} 15. Rac1 {[%clk 0:02:02]}  Rd8 {[%clk 0:01:27]} 16. Ne4 {[%clk 0:01:50]}  Ne8 {[%clk 0:01:19]} 17. Qc5 {[%clk 0:01:29]}  Qxc5 {[%clk 0:01:15]} 18. Nxc5 {[%clk 0:01:30]}  b6 {[%clk 0:01:06]} 19. Na4 {[%clk 0:01:26]}  Rb8 {[%clk 0:01:01]} 20. f4 {[%clk 0:01:25]}  Ng6 {[%clk 0:00:33]} 21. Nc6 {[%clk 0:01:22]}  Rxd1+ {[%clk 0:00:32]} 22. Rxd1 {[%clk 0:01:23]}  Rb7 {[%clk 0:00:33]} 23. Rd8 {[%clk 0:01:17]}  Bd7 {[%clk 0:00:33]} 24. Bf3 {[%clk 0:01:17]}  Rc7 {[%clk 0:00:30]} 25. Nxb6 {[%clk 0:01:16]}  Rxc6 {[%clk 0:00:23]} 26. Nxd7 {[%clk 0:01:12]}  Rc1+ {[%clk 0:00:20]} 27. Kf2 {[%clk 0:01:13]} 1-0


[Site "https://www.chess.com"]